bitfinex/quotes_SOLUSD_20250817
["timestamp","ask_amount","ask_price","bid_price","bid_amount"]
[1755423723198,37.02,192.03,192.02,2.8688966]
[1755423723397,37.02,192.03,192.02,8.07668745]
[1755423724019,37.02,192.03,192.02,5.88779085]
[1755423724189,40.86211642,192.03,192.02,8.07668745]
[1755423724703,40.86211642,192.03,192.02,9.30653697]
[1755423725732,40.86211642,192.03,192.01,0.03]
[1755423725733,44.9885618,192.03,192.01,0.03]
[1755423725901,7.2985618,192.02,192.01,0.03]
[1755423726396,7.2985618,192.02,192.01,3.44874612]
[1755423726397,36.98,192.02,192.01,3.44874612]
[1755423726924,36.98,192.02,192.01,5.91806208]
[1755423727108,36.98,192.02,192.01,9.3368082]
[1755423727798,36.98,192.02,192.01,5.91806208]
[1755423728118,40.81963975,192.02,192.01,9.3368082]
[1755423729020,3.83963975,192.02,192.01,9.3368082]
[1755423729337,0.06,192.03,192.01,9.3368082]
[1755423729525,0.06,192.03,192.02,4.09874612]
[1755423729916,0.06,192.03,192.02,9.33680812]
[1755423730508,0.06,192.03,192.02,35.30653697]
[1755423735940,0.06,192.05,192.02,35.30653697]
[1755423736118,0.06,192.05,192.04,3.41874612]
[1755423736809,0.06,192.05,192.04,4.13874612]
[1755423737010,0.06,192.05,192.04,9.3459946]
[1755423739412,0.06,192.05,192.04,24.9917736]
[1755423739631,0.06,192.05,192.04,9.3459946]
[1755423741043,0.06,192.05,192.04,8.6259946]
[1755423742319,0.06,192.05,192.04,10.7120986]
[1755423744237,0.06,192.05,192.04,11.4320986]
[1755423744643,0.06,192.07,192.06,26.0]
[1755423744825,0.06,192.07,192.06,29.41874612]
[1755423745034,0.06,192.07,192.06,35.34545235]
[1755423745644,0.06,192.07,192.06,34.62545235]
[1755423745842,0.75,192.07,192.06,17.40770623]
[1755423746032,0.75,192.07,192.06,46.82645235]
[1755423746232,0.75,192.07,192.06,34.62545235]
[1755423746435,0.75,192.07,192.06,29.41874612]
[1755423747021,0.75,192.07,192.06,34.62545235]
[1755423747520,0.75,192.07,192.06,29.41874612]
[1755423747740,0.75,192.07,192.06,3.41874612]
[1755423747942,0.75,192.07,192.05,3.41874612]
[1755423748253,37.69,192.07,192.05,3.41874612]
[1755423748453,0.69,192.06,192.05,3.41874612]
[1755423749153,0.69,192.06,192.03,26.0]
[1755423749337,0.69,192.06,192.05,3.41874612]
[1755423749529,37.0,192.07,192.05,3.41874612]
[1755423750130,0.69,192.06,192.05,3.41874612]
[1755423750568,0.69,192.06,192.01,3.53819]
[1755423750569,15.10621557,192.05,192.01,0.03]
[1755423750748,15.10621557,192.03,192.01,0.03]
[1755423751062,59.35937501,192.02,192.01,0.03]
[1755423751225,65.16716586,192.02,192.01,0.03]
[1755423751654,22.97937501,192.02,192.01,0.03]
[1755423751860,60.25937501,192.02,192.01,0.03]
[1755423753657,22.97937501,192.02,192.01,0.03]
[1755423753851,7.87315944,192.02,192.01,0.03]
[1755423754058,41.70775911,192.02,192.01,0.03]
[1755423754242,45.15315944,192.02,192.01,0.03]
[1755423756365,45.15311421,192.02,192.01,0.03]
[1755423757953,65.46712063,192.02,192.01,0.03]
[1755423759246,64.86712063,192.02,192.01,0.03]
[1755423759456,64.86753259,192.02,192.01,0.03]
[1755423759886,64.86750653,192.02,192.01,0.03]
[1755423760765,65.46750653,192.02,192.01,0.03]
[1755423762872,59.65971568,192.02,192.01,0.03]
[1755423763182,44.55350011,192.02,192.01,0.03]
[1755423764962,7.27350011,192.02,192.01,0.03]
[1755423765186,44.49350011,192.02,192.01,0.03]
[1755423765978,7.27350011,192.02,192.01,0.74]
[1755423766362,41.04809978,192.02,192.01,0.74]
[1755423766564,44.49349274,192.02,192.01,0.74]
[1755423766884,44.49349274,192.02,192.01,0.03]
[1755423768684,44.49360393,192.02,192.01,0.03]
[1755423769186,44.493606,192.02,192.01,0.03]
[1755423773690,45.093606,192.02,192.01,0.03]
[1755423773889,44.493606,192.02,192.01,0.03]
[1755423774685,44.48740965,192.02,192.01,0.03]
[1755423776281,7.26740965,192.02,192.01,0.03]
[1755423776462,3.82201669,192.02,192.01,30.15874612]
[1755423776668,37.14,192.04,192.01,30.15874612]
[1755423776865,3.82237434,192.03,192.02,5.91779085]
[1755423777185,3.82237434,192.03,192.02,9.33653697]
[1755423777578,37.14,192.04,192.02,9.33653697]
[1755423777770,37.14,192.04,192.03,4.12874612]
[1755423777970,44.40206561,192.04,192.03,4.12874612]
[1755423778276,40.96109913,192.04,192.03,4.12874612]
[1755423779690,40.92109913,192.04,192.03,9.33626577]
[1755423779895,3.82109913,192.04,192.03,9.33626577]
[1755423780192,40.92109913,192.04,192.03,9.33626577]
[1755423781280,44.36041679,192.04,192.03,9.33626577]
[1755423781593,44.34041679,192.04,192.03,9.33626577]
[1755423781892,40.90162188,192.04,192.03,9.33626577]
[1755423782088,37.08,192.04,192.03,9.33626577]
[1755423783489,37.08,192.04,192.03,4.12874612]
[1755423785290,40.90240035,192.04,192.03,4.12874612]
[1755423785616,40.90240035,192.04,192.03,0.71]
[1755423785775,37.08,192.04,192.03,4.12874612]
[1755423785974,40.90189555,192.04,192.03,4.12874612]
[1755423786494,53.56743682,192.04,192.03,0.03]
[1755423787766,50.1486907,192.04,192.03,0.03]
[1755423789092,50.14857007,192.04,192.03,0.03]
[1755423789495,49.54857007,192.04,192.03,0.03]
[1755423790288,7.26132159,192.04,192.03,0.03]
[1755423790499,44.28132159,192.04,192.03,0.03]
[1755423792105,68.02125335,192.04,192.03,0.03]
[1755423792611,68.62125335,192.04,192.03,0.03]
[1755423793381,72.94426479,192.04,192.03,0.03]
[1755423794628,69.52551867,192.04,192.03,0.03]
[1755423794825,72.94426479,192.04,192.03,0.03]
[1755423795188,72.9470408,192.04,192.03,0.03]
[1755423795588,72.9471367,192.04,192.03,0.03]
[1755423796313,65.20537914,192.04,192.01,0.03]
[1755423796518,22.8367136,192.02,192.01,0.03]
[1755423796815,67.10862869,192.02,192.01,0.03]
[1755423797029,67.70862869,192.02,192.01,0.03]
[1755423797521,72.91641954,192.02,192.01,0.03]
[1755423797819,72.91641954,192.02,191.99,0.03]
[1755423797820,15.10621557,192.01,191.99,0.03]
[1755423798000,58.98450836,192.0,191.99,0.03]
[1755423798201,59.99757833,192.0,191.99,0.03]
[1755423798516,41.10621557,191.98,191.97,0.03]
[1755423798716,88.93632445,191.98,191.97,0.03]
[1755423798898,89.53632445,191.98,191.97,0.03]
[1755423799096,86.11757833,191.98,191.97,0.03]
[1755423799290,85.51757833,191.98,191.97,0.03]
[1755423799496,94.74520037,191.98,191.97,0.03]
[1755423800300,15.10621557,191.97,191.95,0.03]
[1755423800529,59.51757833,191.96,191.95,0.03]
[1755423800731,60.11757833,191.96,191.95,0.03]
[1755423800902,63.53632445,191.96,191.95,0.03]
[1755423801319,67.83765202,191.96,191.95,0.03]
[1755423801530,73.04707064,191.96,191.95,0.03]
[1755423801834,68.74574307,191.96,191.95,0.03]
[1755423803313,73.04434301,191.96,191.95,0.03]
[1755423804025,73.03356785,191.96,191.95,0.03]
[1755423804936,68.73496791,191.96,191.95,1e-08]
[1755423805241,70.82357691,191.96,191.95,1e-08]
[1755423805709,68.73496791,191.96,191.95,1e-08]
[1755423805909,70.82357691,191.96,191.95,1e-08]
[1755423806122,75.11694163,191.96,191.95,1e-08]
[1755423806437,70.82357691,191.96,191.95,1e-08]
[1755423806839,67.40483079,191.96,191.95,1e-08]
[1755423807035,72.3868709,191.96,191.95,1e-08]
[1755423807248,30.99496791,191.96,191.95,1e-08]
[1755423807432,68.09496791,191.96,191.95,1e-08]
[1755423807735,64.65542124,191.96,191.95,1e-08]
[1755423807919,68.08778712,191.96,191.95,1e-08]
[1755423808640,68.68778712,191.96,191.95,1e-08]
[1755423809433,22.35962238,191.96,191.95,0.70000001]
[1755423809628,64.669041,191.96,191.95,0.70000001]
[1755423809824,68.08778712,191.96,191.95,1e-08]
[1755423811065,68.08778712,191.96,191.95,0.70000001]
[1755423811534,64.669041,191.96,191.95,0.70000001]
[1755423811726,68.08778712,191.96,191.95,0.70000001]
[1755423811934,68.06778712,191.96,191.95,0.70000001]
[1755423812523,59.43962238,191.96,191.95,0.70000001]
[1755423813145,68.06778712,191.96,191.95,0.70000001]
[1755423813460,68.05443731,191.96,191.95,0.70000001]
[1755423813647,64.63569119,191.96,191.95,0.70000001]
[1755423813834,68.05443731,191.96,191.95,0.70000001]
[1755423814618,68.05443731,191.96,191.95,1e-08]
[1755423814819,64.63569119,191.96,191.95,1e-08]
[1755423815024,68.05443731,191.96,191.95,0.70000001]
[1755423817432,64.63569119,191.96,191.95,0.70000001]
[1755423817653,44.320057,191.96,191.95,0.70000001]
[1755423817832,40.88769112,191.96,191.95,0.70000001]
[1755423818327,40.88573717,191.96,191.95,0.70000001]
[1755423818527,49.51390191,191.96,191.95,0.70000001]
[1755423819133,49.51369925,191.96,191.95,1e-08]
[1755423819325,64.61991482,191.96,191.95,1e-08]
[1755423820026,64.67991482,191.96,191.95,1e-08]
[1755423820241,68.10408427,191.96,191.95,1e-08]
[1755423820816,68.70408427,191.96,191.95,1e-08]
[1755423822242,68.70220202,191.96,191.95,1e-08]
[1755423822544,64.89854976,191.96,191.95,1e-08]
[1755423822749,68.7019135,191.96,191.95,1e-08]
[1755423822948,70.7904135,191.96,191.95,1e-08]
[1755423823529,68.7019135,191.96,191.95,1e-08]
[1755423824452,65.28316738,191.96,191.95,1e-08]
[1755423824750,68.7019135,191.96,191.95,1e-08]
[1755423828237,41.10621557,191.9,191.86,0.68]
[1755423828440,18.52496169,191.87,191.86,0.68]
[1755423828745,59.32832543,191.87,191.86,0.68]
[1755423830145,46.31916453,191.83,191.82,0.68]
[1755423830348,93.96466424,191.83,191.82,0.68]
[1755423830664,44.22675359,191.83,191.82,0.68]
[1755423831145,67.96466424,191.83,191.82,0.68]
[1755423831352,67.96474562,191.83,191.82,0.68]
[1755423831533,64.1613005,191.83,191.82,0.68]
[1755423831728,67.9645215,191.83,191.82,0.68]
[1755423832141,44.22661085,191.83,191.82,0.68]
[1755423833462,40.803221,191.83,191.82,0.68]
[1755423833852,3.803221,191.83,191.82,0.68]
[1755423834053,3.803221,191.83,191.82,4.09874612]
[1755423834229,40.803221,191.83,191.82,0.68]
[1755423835741,3.803221,191.83,191.82,0.68]
[1755423836457,40.823221,191.83,191.82,0.68]
[1755423836775,3.803221,191.83,191.82,0.68]
[1755423837069,40.823221,191.83,191.82,0.71]
[1755423837478,3.803221,191.83,191.82,4.12874612]
[1755423837656,40.823221,191.83,191.82,4.12874612]
[1755423838253,40.823221,191.83,191.82,0.71]
[1755423838471,7.69784792,191.91,191.82,9.34196684]
[1755423838647,44.25745378,191.9,191.86,3.41874612]
[1755423838842,7.23745378,191.89,191.87,0.68]
[1755423839153,40.82917922,191.88,191.87,4.09874612]
[1755423839357,40.82917922,191.88,191.87,0.68]
[1755423840154,40.45222255,191.88,191.87,0.68]
[1755423840471,3.8152911,191.88,191.87,9.31060831]
[1755423840641,40.8352911,191.88,191.87,9.31060831]
[1755423840845,40.83603054,191.88,191.87,9.31060831]
[1755423843574,3.81603054,191.88,191.87,9.31060831]
[1755423843790,40.81603054,191.88,191.87,9.31060831]
[1755423844279,40.81603054,191.88,191.87,5.89186219]
[1755423844454,40.81603054,191.88,191.87,9.31060831]
[1755423844649,0.06,191.96,191.87,9.31060831]
[1755423844650,37.0,191.89,191.87,9.31060831]
[1755423844855,0.06,191.96,191.88,4.09874612]
[1755423845077,0.06,191.96,191.92,3.41874612]
[1755423845078,44.26426902,191.95,191.92,3.41874612]
[1755423845260,7.26426902,191.94,191.93,0.68]
[1755423845576,7.26426902,191.94,191.92,3.41874612]
[1755423845761,3.82335576,191.93,191.92,3.41874612]
[1755423845960,7.26426902,191.93,191.92,3.41874612]
[1755423846277,7.26426902,191.93,191.91,3.41874612]
[1755423846479,40.82335576,191.92,191.9,3.41874612]
[1755423846652,3.82335576,191.91,191.9,3.41874612]
[1755423846853,3.82219193,191.91,191.9,4.09874612]
[1755423848080,37.0,191.91,191.9,4.09874612]
[1755423848271,37.0,191.91,191.9,9.30979354]
[1755423848885,15.16621557,191.96,191.9,9.30979354]
[1755423849088,44.26290565,191.95,191.92,3.41874612]
[1755423849260,7.26290565,191.94,191.93,0.68]
[1755423850865,7.26290565,191.94,191.92,3.41874612]
[1755423851181,40.82199487,191.93,191.91,4.09874612]
[1755423851490,3.82199487,191.92,191.91,4.09874612]
[1755423852483,37.0,191.93,191.91,0.68]
[1755423852788,0.06,191.96,191.92,4.09874612]
[1755423852954,40.8205667,191.95,191.94,3.41874612]
[1755423853285,40.8205667,191.95,191.93,0.68]
[1755423853286,44.2589962,191.95,191.93,4.09874612]
[1755423853476,3.8205667,191.94,191.93,4.09874612]
[1755423854171,3.8805667,191.94,191.93,4.09874612]
[1755423854373,3.8805667,191.94,191.93,0.68]
[1755423854566,3.8805667,191.94,191.93,4.09874612]
[1755423855696,0.06,191.94,191.93,9.30897901]
[1755423856271,0.06,191.94,191.93,4.09874612]
[1755423856481,0.06,191.94,191.91,0.69]
[1755423856676,37.0,191.93,191.9,34.62978224]
[1755423857092,37.6,191.93,191.89,29.41874612]
[1755423857409,3.81701369,191.92,191.89,26.0]
[1755423857607,36.98,191.91,191.89,26.0]
[1755423857778,36.98,191.91,191.89,29.41874612]
[1755423857976,36.98,191.91,191.89,30.10874612]
[1755423858292,36.98,191.91,191.9,4.10874612]
[1755423859176,36.98,191.91,191.9,9.31979354]
[1755423860289,36.98,191.91,191.9,0.69]
[1755423860478,36.98,191.91,191.89,8.63002142]
[1755423860710,36.98,191.91,191.9,3.41874612]
[1755423860998,36.98,191.91,191.9,4.10874612]
[1755423861588,0.06,191.94,191.9,4.10874612]
[1755423861779,37.04,191.94,191.93,3.41874612]
[1755423861984,37.04,191.94,191.93,4.10874612]
[1755423862283,37.04,191.94,191.93,35.31897901]
[1755423865421,0.06,191.94,191.93,35.31897901]
[1755423866004,0.06,191.94,191.93,37.40628001]
[1755423866311,37.04,191.94,191.93,3.41874612]
[1755423866607,37.04,191.94,191.93,4.10874612]
[1755423867006,37.04,191.94,191.93,9.31897901]
[1755423867206,0.06,191.94,191.93,9.31897901]
[1755423867998,0.06,191.96,191.93,50.42519458]
[1755423868192,0.06,191.96,191.95,29.41874612]
[1755423868590,0.06,191.96,191.95,30.10874612]
[1755423868791,0.06,191.96,191.95,32.19550312]
[1755423869923,0.06,191.96,191.95,37.40519314]
[1755423870488,0.06,191.97,191.95,37.40519314]
[1755423870818,0.06,191.97,191.96,4.10874612]
[1755423872023,0.06,191.98,191.96,9.31816474]
[1755423872224,0.06,191.98,191.97,4.10874612]
[1755423872921,0.06,191.98,191.97,32.19539412]
[1755423874202,0.06,191.98,191.97,37.40454138]
[1755423875398,0.06,192.0,191.99,26.0]
[1755423875824,0.06,192.0,191.99,26.69]
[1755423876030,0.06,192.0,191.99,42.33986]
[1755423876320,0.06,192.04,191.99,49.6982127]
[1755423876521,0.06,192.04,192.01,3.41874612]
[1755423877021,0.06,192.04,192.03,26.0]
[1755423877324,0.06,192.04,192.03,29.41874612]
[1755423877530,0.06,192.04,192.03,35.31626577]
[1755423878115,0.06,192.04,192.03,37.40247877]
[1755423884902,0.06,192.04,192.03,36.71247877]
[1755423885212,0.06,192.04,192.03,34.62626577]
[1755423887442,4.52460666,192.04,192.03,3.41874612]
[1755423887643,7.94335278,192.04,191.96,5.20941862]
[1755423887937,44.84335278,192.03,191.97,3.41874612]
[1755423888152,4.46460666,192.02,191.97,3.41874612]
[1755423888332,4.46460666,192.01,191.98,3.41874612]
[1755423888641,4.46460666,192.0,191.96,10.44883762]
[1755423888813,40.37874612,192.03,191.97,8.6278863]
[1755423888814,0.66,191.99,191.97,8.6278863]
[1755423889514,0.66,191.99,191.98,3.41874612]
[1755423889710,3.80412061,191.99,191.98,3.41874612]
[1755423890036,0.66,192.01,191.97,5.20914018]
[1755423890239,3.80453105,192.0,191.99,3.41874612]
[1755423891011,3.80453105,192.0,191.98,0.03]
[1755423891240,0.66,192.01,191.99,3.41874612]
[1755423891444,3.80496699,192.0,191.98,5.23884729]
[1755423891642,0.72,192.04,191.99,3.41874612]
[1755423891810,41.42496922,192.03,192.0,3.41874612]
[1755423892007,3.80496922,192.02,192.0,3.41874612]
[1755423892236,3.80496922,192.01,192.0,3.41874612]
[1755423892636,3.80496922,192.02,192.0,3.41874612]
[1755423892934,3.80496922,192.01,192.0,3.41874612]
[1755423893282,3.80496922,192.01,191.99,3.41874612]
[1755423893412,0.66,192.01,191.99,3.41874612]
[1755423893820,4.46624201,192.01,191.99,3.41874612]
[1755423894116,37.62,192.03,191.99,3.41874612]
[1755423894337,3.80705626,192.02,191.99,3.41874612]
[1755423894555,4.46705626,192.02,191.99,3.41874612]
[1755423895254,4.46705626,192.02,191.99,8.62732926]
[1755423895580,0.66,192.01,191.98,5.23866395]
[1755423895746,0.66,192.01,191.99,3.41874612]
[1755423897356,3.80943053,192.02,191.98,3.44874612]
[1755423897577,0.66,192.0,191.98,0.03]
[1755423898234,0.66,191.99,191.98,0.03]
[1755423898860,0.06,192.04,191.98,3.44874612]
[1755423899059,36.96,192.03,192.01,3.41874612]
[1755423899371,37.62,192.03,192.0,3.41874612]
[1755423899674,37.62,192.03,191.98,5.89877855]
[1755423899847,37.62,192.03,192.0,3.41874612]
[1755423900236,7.89073087,192.02,191.98,0.03]
[1755423900435,4.07874612,192.02,191.98,0.03]
[1755423900637,0.66,192.01,191.98,0.03]
[1755423901063,0.66,192.0,191.98,0.03]
[1755423901243,36.96,191.99,191.98,0.03]
[1755423903069,0.66,192.03,191.98,4.10874612]
[1755423903288,7.3029466,192.04,192.01,3.41874612]
[1755423903573,36.96,192.02,192.0,0.66]
[1755423903768,36.96,192.02,192.01,3.41874612]
[1755423904774,37.02,192.02,192.01,3.41874612]
[1755423905174,37.02,192.02,192.0,3.41874612]
[1755423905753,37.02,192.02,192.01,3.41874612]
[1755423906077,37.02,192.02,192.01,4.07874612]
[1755423906244,0.06,192.02,192.01,4.07874612]
[1755423906446,37.02,192.02,192.01,9.2868082]
[1755423906664,0.06,192.02,192.01,9.2868082]
[1755423908462,0.06,192.04,192.03,26.0]
[1755423908665,0.06,192.04,192.03,29.41874612]
[1755423908982,0.06,192.04,192.03,30.07874612]
[1755423909167,1e-08,192.05,192.04,26.0]
[1755423909355,1e-08,192.05,192.04,29.93947096]
[1755423909574,1e-08,192.05,192.04,30.59947096]
[1755423910167,0.06,192.06,192.04,30.59947096]
[1755423910168,1e-08,192.06,192.05,26.0]
[1755423910414,1e-08,192.06,192.05,30.07874612]
[1755423910601,1e-08,192.06,192.05,35.28572346]
[1755423910775,1e-08,192.06,192.05,31.20697734]
[1755423910968,1e-08,192.06,192.04,3.41874612]
[1755423911172,1e-08,192.06,192.05,3.41874612]
[1755423911701,1e-08,192.06,192.05,4.07874612]
[1755423912072,1e-08,192.06,192.05,3.41874612]
[1755423912998,1e-08,192.06,192.05,8.62572346]
[1755423913498,1e-08,192.06,192.05,9.28572346]
[1755423915400,1e-08,192.06,192.05,5.86697734]
[1755423915586,4.48368337,192.06,192.03,5.20732693]
[1755423915896,7.92393392,192.06,192.03,8.62607305]
[1755423916091,4.10025056,192.06,192.04,3.41874612]
[1755423916288,1e-08,192.06,192.05,3.41874612]
[1755423916873,1e-08,192.06,192.05,9.28572346]
[1755423917076,1e-08,192.06,192.05,8.62572346]
[1755423917775,1e-08,192.06,192.05,9.28572346]
[1755423918379,1e-08,192.06,192.05,35.28572346]
[1755423926712,1e-08,192.06,192.05,50.39193903]
[1755423926882,0.06,192.08,192.05,24.39193903]
[1755423927088,0.06,192.08,192.07,3.41874612]
[1755423927511,0.06,192.08,192.07,4.07874612]
[1755423927888,0.06,192.08,192.07,9.28518127]
[1755423929481,1e-08,192.08,192.07,9.28518127]
[1755423930103,1e-08,192.08,192.07,9.80582478]
[1755423930628,1e-08,192.09,192.07,9.80582478]
[1755423930786,1e-08,192.09,192.08,4.07874612]
[1755423931426,1e-08,192.1,192.09,26.0]
[1755423931628,1e-08,192.1,192.09,35.28463919]
[1755423932490,1e-08,192.1,192.09,35.80522849]
[1755423933085,1e-08,192.1,192.09,50.91144406]
[1755423933286,0.06,192.12,192.09,35.80522849]
[1755423933520,0.06,192.12,192.11,34.62409722]
[1755423933819,0.06,192.14,192.11,50.2508479]
[1755423934120,0.06,192.14,192.12,3.41874612]
[1755423935289,4.13874612,192.13,192.06,3.41874612]
[1755423935488,3.41874612,192.11,192.07,5.20643515]
[1755423935925,0.66,192.1,192.07,5.20643515]
[1755423936126,0.66,192.09,192.07,5.20643515]
[1755423936294,0.06,192.13,192.06,8.62539208]
[1755423936295,3.41874612,192.12,192.06,8.62539208]
[1755423936496,4.07874612,192.11,192.06,8.62539208]
[1755423936695,0.66,192.1,192.06,5.20664596]
[1755423936896,3.41874612,192.11,192.06,5.20664596]
[1755423937096,0.66,192.09,192.06,5.20664596]
[1755423938428,0.72,192.11,192.07,3.41874612]
[1755423938605,0.72,192.11,192.08,3.41874612]
[1755423938809,0.72,192.11,192.07,3.41874612]
[1755423938810,0.66,192.1,192.07,3.41874612]
[1755423939402,0.66,192.1,192.07,8.62495359]
[1755423939631,0.06,192.11,192.09,3.41874612]
[1755423939925,0.06,192.11,192.1,29.41874612]
[1755423940219,0.06,192.11,192.1,30.07874612]
[1755423940652,0.06,192.11,192.1,4.07874612]
[1755423941496,0.06,192.11,192.1,9.28436819]
[1755423943231,0.06,192.11,192.1,34.62436819]
[1755423944497,0.72,192.11,192.09,5.20588536]
[1755423944811,0.66,192.1,192.08,8.62489831]
[1755423945739,0.66,192.09,192.07,34.62516318]
[1755423946143,0.06,192.11,192.07,34.62516318]
[1755423946437,0.66,192.1,192.07,34.62516318]
[1755423946927,0.06,192.11,192.07,34.62516318]
[1755423947305,0.16,192.11,192.07,34.62516318]
[1755423947728,0.16,192.11,192.06,5.2066687]
[1755423947904,0.1,192.1,192.06,8.62541482]
[1755423948411,0.1,192.1,192.07,3.41874612]
[1755423951112,0.1,192.09,192.05,8.62567618]
[1755423951316,0.1,192.08,192.04,34.6259502]
[1755423951520,3.41874612,192.06,192.03,0.03]
[1755423951919,0.66,192.05,192.03,0.03]
[1755423952433,37.58,192.05,192.03,0.03]
[1755423955119,36.92,192.05,192.03,0.03]
[1755423955322,36.92,192.05,192.03,4.15874612]
[1755423955832,36.92,192.05,192.03,0.03]
[1755423956037,36.92,192.05,192.03,3.44874612]
[1755423956539,36.92,192.05,192.03,4.15874612]
[1755423958503,36.92,192.05,192.04,3.41874612]
[1755423958739,4.35770216,192.11,192.04,4.12874612]
[1755423958740,0.72,192.11,192.04,4.12874612]
[1755423959035,36.92,192.07,192.05,0.71]
[1755423959944,36.92,192.07,192.04,5.2072336]
[1755423960122,0.66,192.06,192.03,3.44874612]
[1755423960322,0.66,192.06,192.03,0.03]
[1755423960631,0.66,192.05,192.03,0.03]
[1755423960838,3.81424066,192.06,192.04,3.41874612]
[1755423961044,36.94,192.06,192.05,3.41874612]
[1755423961834,0.06,192.11,192.05,9.33572346]
[1755423962035,44.17355768,192.1,192.07,3.41874612]
[1755423962210,7.25355768,192.09,192.06,3.41874612]
[1755423962410,3.43606436,192.09,192.06,4.12874612]
[1755423962745,3.43606436,192.09,192.07,4.12874612]
[1755423962923,36.92,192.1,192.07,4.12874612]
[1755423963944,36.92,192.1,192.07,0.71]
[1755423964145,7.25568275,192.09,192.07,3.41874612]
[1755423964346,3.43707337,192.09,192.05,3.41874612]
[1755423964520,3.91788985,192.08,192.04,3.41874612]
[1755423964716,0.1,192.08,192.04,3.41874612]
[1755423964926,3.92001122,192.08,192.04,3.41874612]
[1755423965121,3.43707337,192.09,192.05,3.41874612]
[1755423965329,3.82095125,192.08,192.05,4.12874612]
[1755423965526,3.43707337,192.09,192.07,3.41874612]
[1755423965743,3.43707337,192.09,192.07,9.33512367]
[1755423966233,36.92,192.1,192.07,9.33512367]
[1755423966437,3.82318514,192.09,192.07,4.12874612]
[1755423966618,7.26427625,192.09,192.07,4.12874612]
[1755423966820,3.44109111,192.09,192.07,4.12874612]
[1755423967633,36.92,192.1,192.07,4.12874612]
[1755423969549,36.92,192.1,192.07,9.33518033]
[1755423970848,36.92,192.1,192.07,5.91643421]
[1755423971036,36.92,192.1,192.07,4.12874612]
[1755423971240,36.92,192.1,192.06,8.62540764]
[1755423971557,36.92,192.1,192.06,9.33540764]
[1755423971725,36.92,192.1,192.07,0.03]
[1755423972926,11.33672355,192.09,192.07,0.03]
[1755423973129,3.82020205,192.08,192.07,0.03]
[1755423973445,4.48020205,192.08,192.07,0.03]
[1755423974050,4.48183705,192.08,192.07,0.03]
[1755423974245,3.82183705,192.08,192.07,0.03]
[1755423974425,3.82189393,192.08,192.07,0.03]
[1755423975359,7.90064005,192.08,192.07,0.03]
[1755423975564,11.33841543,192.08,192.07,0.03]
[1755423975728,7.90064005,192.08,192.07,0.03]
[1755423975926,11.33841543,192.08,192.07,0.03]
[1755423976144,7.90064005,192.08,192.07,0.03]
[1755423976358,11.33841543,192.08,192.07,0.03]
[1755423976942,16.54086543,192.08,192.07,0.03]
[1755423977343,13.12211931,192.08,192.07,0.03]
[1755423977659,16.54086543,192.08,192.07,0.03]
[1755423978558,13.12211931,192.08,192.07,0.03]
[1755423978867,16.54086543,192.08,192.07,0.03]
[1755423979567,13.12211931,192.08,192.07,0.03]
[1755423979758,16.54086543,192.08,192.07,0.03]
[1755423983070,16.54597001,192.08,192.07,0.03]
[1755423983381,53.46574899,192.08,192.07,0.03]
[1755423983756,53.46577967,192.08,192.07,0.03]
[1755423984175,68.57199524,192.08,192.07,0.03]
[1755423984863,65.15324912,192.08,192.07,0.03]
[1755423985066,68.57199524,192.08,192.07,0.03]
[1755423986272,72.8696974,192.08,192.07,0.03]
[1755423986788,35.9496974,192.08,192.07,0.03]
[1755423986961,64.47421986,192.08,192.07,0.03]
[1755423987278,72.87821572,192.08,192.07,0.03]
[1755423987580,68.7994696,192.08,192.07,0.03]
[1755423987767,72.22143482,192.08,192.07,0.03]
[1755423989059,72.88143482,192.08,192.07,0.03]
[1755423990960,35.96143482,192.08,192.07,0.03]
[1755423991259,72.88143482,192.08,192.07,0.03]